[Event "Titled Tuesday Blitz April 4 Early 2023"]
[White "Toropov, Pavel"]
[Black "Duda, Jan-Krzysztof"]
[WhiteFideId "24129178"]
[BlackFideId "1170546"]
[WhiteElo "2182"]
[BlackElo "2790"]
[Result "0-1"]
[Round "02"]
[TimeControl "180+2"]
[Date "2023.04.04"]
[WhiteClock "0:00:10"]
[BlackClock "0:00:43"]

1. e4 {[%clk 0:02:59]}  c5 {[%clk 0:02:59]} 2. Nf3 {[%clk 0:02:59]}  d6 {[%clk 0:02:59]} 3. Bb5+ {[%clk 0:02:58]}  Bd7 {[%clk 0:02:58]} 4. Bxd7+ {[%clk 0:02:58]}  Nxd7 {[%clk 0:02:59]} 5. Qe2 {[%clk 0:02:56]}  g6 {[%clk 0:02:58]} 6. c3 {[%clk 0:02:52]}  Rc8 {[%clk 0:02:57]} 7. O-O {[%clk 0:02:52]}  Bh6 {[%clk 0:02:57]} 8. d3 {[%clk 0:02:45]}  Bxc1 {[%clk 0:02:56]} 9. Rxc1 {[%clk 0:02:45]}  Ngf6 {[%clk 0:02:56]} 10. Nbd2 {[%clk 0:02:46]}  O-O {[%clk 0:02:53]} 11. d4 {[%clk 0:02:45]}  e6 {[%clk 0:02:43]} 12. e5 {[%clk 0:02:20]}  Ne8 {[%clk 0:02:43]} 13. exd6 {[%clk 0:02:16]}  Nxd6 {[%clk 0:02:44]} 14. Ne4 {[%clk 0:02:16]}  Qe7 {[%clk 0:02:37]} 15. Rd1 {[%clk 0:02:13]}  Nxe4 {[%clk 0:02:33]} 16. Qxe4 {[%clk 0:02:12]}  Nf6 {[%clk 0:02:33]} 17. Qh4 {[%clk 0:02:10]}  c4 {[%clk 0:02:30]} 18. Ng5 {[%clk 0:01:14]}  Rfe8 {[%clk 0:02:17]} 19. Re1 {[%clk 0:01:10]}  Kg7 {[%clk 0:02:14]} 20. Re2 {[%clk 0:00:52]}  h6 {[%clk 0:02:10]} 21. Ne4 {[%clk 0:00:50]}  Nd5 {[%clk 0:02:07]} 22. Qg3 {[%clk 0:00:50]}  Red8 {[%clk 0:02:06]} 23. Rae1 {[%clk 0:00:49]}  b5 {[%clk 0:01:45]} 24. a3 {[%clk 0:00:49]}  a5 {[%clk 0:01:44]} 25. h4 {[%clk 0:00:47]}  Qc7 {[%clk 0:01:43]} 26. Qf3 {[%clk 0:00:38]}  Qf4 {[%clk 0:01:33]} 27. Qh3 {[%clk 0:00:36]}  b4 {[%clk 0:01:32]} 28. axb4 {[%clk 0:00:35]}  axb4 {[%clk 0:01:33]} 29. Nc5 {[%clk 0:00:34]}  Rc6 {[%clk 0:01:23]} 30. Re4 {[%clk 0:00:28]}  Qf6 {[%clk 0:00:58]} 31. h5 {[%clk 0:00:22]}  g5 {[%clk 0:00:56]} 32. Qg4 {[%clk 0:00:20]}  bxc3 {[%clk 0:00:49]} 33. bxc3 {[%clk 0:00:21]}  Nxc3 {[%clk 0:00:49]} 34. Nxe6+ {[%clk 0:00:21]}  fxe6 {[%clk 0:00:49]} 35. Rxe6 {[%clk 0:00:22]}  Rxe6 {[%clk 0:00:49]} 36. Rxe6 {[%clk 0:00:22]}  Rxd4 {[%clk 0:00:44]} 37. Rxf6 {[%clk 0:00:10]}  Rxg4 {[%clk 0:00:43]} 0-1


[Site "https://www.chess.com"]

[Event "Titled Tuesday Blitz April 4 Early 2023"]
[White "Volkov, Maksim"]
[Black "Vidit, Santosh Gujrathi"]
[WhiteFideId "54123070"]
[BlackFideId "5029465"]
[WhiteElo "2312"]
[BlackElo "2651"]
[Result "1-0"]
[Round "02"]
[TimeControl "180+2"]
[Date "2023.04.04"]
[WhiteClock "0:00:16"]
[BlackClock "0:01:14"]

1. d4 {[%clk 0:02:47]}  Nf6 {[%clk 0:02:58]} 2. c4 {[%clk 0:02:47]}  e6 {[%clk 0:02:59]} 3. g3 {[%clk 0:02:46]}  Bb4+ {[%clk 0:02:58]} 4. Bd2 {[%clk 0:02:45]}  a5 {[%clk 0:02:58]} 5. Bg2 {[%clk 0:02:45]}  d5 {[%clk 0:02:56]} 6. Qc2 {[%clk 0:02:44]}  O-O {[%clk 0:02:55]} 7. Nf3 {[%clk 0:02:44]}  Be7 {[%clk 0:02:49]} 8. O-O {[%clk 0:02:33]}  c6 {[%clk 0:02:48]} 9. Rd1 {[%clk 0:02:25]}  Nbd7 {[%clk 0:02:48]} 10. Bf4 {[%clk 0:02:23]}  a4 {[%clk 0:02:47]} 11. a3 {[%clk 0:02:20]}  h6 {[%clk 0:02:45]} 12. h4 {[%clk 0:02:19]}  Qa5 {[%clk 0:02:41]} 13. e3 {[%clk 0:02:15]}  b6 {[%clk 0:02:37]} 14. Ne5 {[%clk 0:01:58]}  Nxe5 {[%clk 0:02:22]} 15. dxe5 {[%clk 0:01:48]}  Nd7 {[%clk 0:02:22]} 16. cxd5 {[%clk 0:01:47]}  cxd5 {[%clk 0:02:22]} 17. e4 {[%clk 0:01:46]}  d4 {[%clk 0:02:10]} 18. Rxd4 {[%clk 0:01:44]}  Nxe5 {[%clk 0:02:10]} 19. Nc3 {[%clk 0:01:40]}  Bf6 {[%clk 0:02:06]} 20. Rxa4 {[%clk 0:01:38]}  Ba6 {[%clk 0:01:42]} 21. Rxa5 {[%clk 0:01:35]}  bxa5 {[%clk 0:01:43]} 22. Rd1 {[%clk 0:01:33]}  Rfc8 {[%clk 0:01:41]} 23. Bf1 {[%clk 0:01:29]}  Bb7 {[%clk 0:01:40]} 24. Be2 {[%clk 0:01:20]}  Rab8 {[%clk 0:01:40]} 25. Qa4 {[%clk 0:01:16]}  Rc5 {[%clk 0:01:39]} 26. Be3 {[%clk 0:01:06]}  Rcc8 {[%clk 0:01:39]} 27. Qxa5 {[%clk 0:01:05]}  Ba8 {[%clk 0:01:39]} 28. Bf4 {[%clk 0:00:51]}  Nc6 {[%clk 0:01:36]} 29. Qa6 {[%clk 0:00:50]}  Bb7 {[%clk 0:01:29]} 30. Qd3 {[%clk 0:00:41]}  Ne5 {[%clk 0:01:26]} 31. Bxe5 {[%clk 0:00:38]}  Bxe5 {[%clk 0:01:27]} 32. Qe3 {[%clk 0:00:33]}  Ba8 {[%clk 0:01:26]} 33. Nb5 {[%clk 0:00:32]}  Bxb2 {[%clk 0:01:26]} 34. a4 {[%clk 0:00:32]}  Be5 {[%clk 0:01:22]} 35. a5 {[%clk 0:00:31]}  Bc6 {[%clk 0:01:22]} 36. Na7 {[%clk 0:00:30]}  Rc7 {[%clk 0:01:22]} 37. Nxc6 {[%clk 0:00:30]}  Rxc6 {[%clk 0:01:23]} 38. a6 {[%clk 0:00:30]}  Ra8 {[%clk 0:01:23]} 39. Qb3 {[%clk 0:00:26]}  Rc7 {[%clk 0:01:22]} 40. Qb5 {[%clk 0:00:23]}  Bf6 {[%clk 0:01:21]} 41. Rd7 {[%clk 0:00:22]}  Rc2 {[%clk 0:01:18]} 42. a7 {[%clk 0:00:19]}  Ra2 {[%clk 0:01:16]} 43. Qb8+ {[%clk 0:00:19]}  Kh7 {[%clk 0:01:13]} 44. Qxa8 {[%clk 0:00:18]}  Rxe2 {[%clk 0:01:14]} 45. Qb7 {[%clk 0:00:16]} 1-0


[Site "https://www.chess.com"]

[Event "Titled Tuesday Blitz April 4 Early 2023"]
[White "Taboas Rodriguez, Daniel"]
[Black "Mitrabha, Guha"]
[WhiteFideId "2208466"]
[BlackFideId "5057000"]
[WhiteElo "2365"]
[BlackElo "2507"]
[Result "0-1"]
[Round "02"]
[TimeControl "180+2"]
[Date "2023.04.04"]
[WhiteClock "0:00:02"]
[BlackClock "0:00:25"]

1. d4 {[%clk 0:03:00]}  Nf6 {[%clk 0:02:22]} 2. Nf3 {[%clk 0:02:57]}  c5 {[%clk 0:02:21]} 3. d5 {[%clk 0:02:57]}  b5 {[%clk 0:02:21]} 4. c4 {[%clk 0:02:58]}  bxc4 {[%clk 0:02:21]} 5. Nc3 {[%clk 0:02:58]}  g6 {[%clk 0:02:21]} 6. e4 {[%clk 0:02:58]}  d6 {[%clk 0:02:22]} 7. Bxc4 {[%clk 0:02:58]}  Bg7 {[%clk 0:02:22]} 8. e5 {[%clk 0:02:45]}  dxe5 {[%clk 0:02:16]} 9. Nxe5 {[%clk 0:02:46]}  O-O {[%clk 0:02:15]} 10. O-O {[%clk 0:02:46]}  Nfd7 {[%clk 0:02:13]} 11. Nc6 {[%clk 0:02:38]}  Nxc6 {[%clk 0:02:09]} 12. dxc6 {[%clk 0:02:39]}  Nb6 {[%clk 0:02:09]} 13. Bb5 {[%clk 0:02:21]}  Be6 {[%clk 0:01:58]} 14. Bg5 {[%clk 0:02:08]}  Qc7 {[%clk 0:01:56]} 15. Qf3 {[%clk 0:02:02]}  a6 {[%clk 0:01:50]} 16. Bd3 {[%clk 0:01:50]}  c4 {[%clk 0:01:39]} 17. Be4 {[%clk 0:01:47]}  Be5 {[%clk 0:01:35]} 18. h3 {[%clk 0:01:33]}  Rfd8 {[%clk 0:01:29]} 19. Rfd1 {[%clk 0:01:33]}  Kg7 {[%clk 0:01:24]} 20. Be3 {[%clk 0:01:02]}  Rab8 {[%clk 0:01:19]} 21. Rxd8 {[%clk 0:00:59]}  Rxd8 {[%clk 0:01:17]} 22. Rd1 {[%clk 0:00:59]}  Nc8 {[%clk 0:01:16]} 23. Bd5 {[%clk 0:00:49]}  Bxd5 {[%clk 0:01:02]} 24. Rxd5 {[%clk 0:00:49]}  Bf6 {[%clk 0:00:54]} 25. Bf4 {[%clk 0:00:34]}  Nd6 {[%clk 0:00:45]} 26. Bxd6 {[%clk 0:00:20]}  Rxd6 {[%clk 0:00:44]} 27. Rxd6 {[%clk 0:00:20]}  Qxd6 {[%clk 0:00:44]} 28. Qd5 {[%clk 0:00:19]}  Qf4 {[%clk 0:00:43]} 29. g3 {[%clk 0:00:12]}  Qb8 {[%clk 0:00:43]} 30. Qd7 {[%clk 0:00:10]}  Be5 {[%clk 0:00:43]} 31. Nd5 {[%clk 0:00:10]}  Qb5 {[%clk 0:00:33]} 32. Nxe7 {[%clk 0:00:06]}  Qxb2 {[%clk 0:00:31]} 33. c7 {[%clk 0:00:04]}  Qb1+ {[%clk 0:00:30]} 34. Kh2 {[%clk 0:00:02]}  Qb6 {[%clk 0:00:25]} 0-1


[Site "https://www.chess.com"]

[Event "Titled Tuesday Blitz April 4 Early 2023"]
[White "Poliakova, Varvara"]
[Black "Van Foreest, Jorden"]
[WhiteFideId "13518313"]
[BlackFideId "1039784"]
[WhiteElo "2075"]
[BlackElo "2633"]
[Result "0-1"]
[Round "02"]
[TimeControl "180+2"]
[Date "2023.04.04"]
[WhiteClock "0:01:53"]
[BlackClock "0:02:36"]

1. e4 {[%clk 0:03:00]}  Nf6 {[%clk 0:02:59]} 2. e5 {[%clk 0:03:00]}  Nd5 {[%clk 0:03:00]} 3. c4 {[%clk 0:03:00]}  Nb6 {[%clk 0:03:01]} 4. d4 {[%clk 0:03:01]}  d6 {[%clk 0:03:01]} 5. exd6 {[%clk 0:03:02]}  exd6 {[%clk 0:03:00]} 6. Nc3 {[%clk 0:03:01]}  Be7 {[%clk 0:02:59]} 7. Bd3 {[%clk 0:03:01]}  O-O {[%clk 0:02:58]} 8. Nge2 {[%clk 0:03:02]}  Nc6 {[%clk 0:02:54]} 9. a3 {[%clk 0:03:01]}  Bg4 {[%clk 0:02:51]} 10. Be3 {[%clk 0:03:00]}  d5 {[%clk 0:02:51]} 11. b3 {[%clk 0:02:56]}  Bf6 {[%clk 0:02:49]} 12. c5 {[%clk 0:02:52]}  Nc8 {[%clk 0:02:48]} 13. f3 {[%clk 0:02:48]}  Bh5 {[%clk 0:02:48]} 14. O-O {[%clk 0:02:45]}  N8e7 {[%clk 0:02:48]} 15. Qc2 {[%clk 0:02:41]}  Bg6 {[%clk 0:02:48]} 16. Rad1 {[%clk 0:02:40]}  Re8 {[%clk 0:02:48]} 17. Bf2 {[%clk 0:02:40]}  Qd7 {[%clk 0:02:47]} 18. Bxg6 {[%clk 0:02:37]}  hxg6 {[%clk 0:02:47]} 19. b4 {[%clk 0:02:37]}  Nf5 {[%clk 0:02:45]} 20. b5 {[%clk 0:02:29]}  Na5 {[%clk 0:02:44]} 21. Rfe1 {[%clk 0:02:18]}  Nc4 {[%clk 0:02:44]} 22. Ng3 {[%clk 0:02:04]}  Nfe3 {[%clk 0:02:44]} 23. Qd3 {[%clk 0:01:52]}  Nxd1 {[%clk 0:02:37]} 24. Rxd1 {[%clk 0:01:53]}  Nb2 {[%clk 0:02:36]} 0-1


[Site "https://www.chess.com"]

[Event "Titled Tuesday Blitz April 4 Early 2023"]
[White "Rasulov, Vugar"]
[Black "Munoz, Francisco Javier"]
[WhiteFideId "13402390"]
[BlackFideId "128368"]
[WhiteElo "2509"]
[BlackElo "2383"]
[Result "1-0"]
[Round "02"]
[TimeControl "180+2"]
[Date "2023.04.04"]
[WhiteClock "0:01:17"]
[BlackClock "0:00:11"]

1. d4 {[%clk 0:03:00]}  d5 {[%clk 0:02:53]} 2. c4 {[%clk 0:03:01]}  e6 {[%clk 0:02:54]} 3. Nc3 {[%clk 0:03:01]}  Nf6 {[%clk 0:02:54]} 4. Bg5 {[%clk 0:03:00]}  Nbd7 {[%clk 0:02:55]} 5. e3 {[%clk 0:03:00]}  Be7 {[%clk 0:02:54]} 6. Rc1 {[%clk 0:02:58]}  h6 {[%clk 0:02:53]} 7. Bh4 {[%clk 0:02:57]}  O-O {[%clk 0:02:52]} 8. Nf3 {[%clk 0:02:54]}  dxc4 {[%clk 0:02:52]} 9. Bxc4 {[%clk 0:02:53]}  a6 {[%clk 0:02:53]} 10. Bd3 {[%clk 0:02:47]}  c5 {[%clk 0:02:52]} 11. O-O {[%clk 0:02:47]}  cxd4 {[%clk 0:02:52]} 12. Nxd4 {[%clk 0:02:45]}  Ne5 {[%clk 0:02:51]} 13. Be2 {[%clk 0:02:40]}  Bd7 {[%clk 0:02:51]} 14. Bg3 {[%clk 0:02:41]}  Ng6 {[%clk 0:02:46]} 15. Bf3 {[%clk 0:02:40]}  Qb6 {[%clk 0:02:41]} 16. Qb3 {[%clk 0:02:34]}  Qxb3 {[%clk 0:02:41]} 17. Nxb3 {[%clk 0:02:35]}  Ra7 {[%clk 0:02:17]} 18. Rfd1 {[%clk 0:02:28]}  b5 {[%clk 0:02:09]} 19. Ne4 {[%clk 0:02:07]}  Nxe4 {[%clk 0:01:24]} 20. Bxe4 {[%clk 0:02:08]}  Rc8 {[%clk 0:01:24]} 21. Na5 {[%clk 0:01:49]}  f5 {[%clk 0:00:50]} 22. Bf3 {[%clk 0:01:40]}  Rxc1 {[%clk 0:00:35]} 23. Rxc1 {[%clk 0:01:41]}  Be8 {[%clk 0:00:35]} 24. Rc8 {[%clk 0:01:34]}  Kf7 {[%clk 0:00:34]} 25. h3 {[%clk 0:01:34]}  Bb4 {[%clk 0:00:29]} 26. Nb7 {[%clk 0:01:18]}  Ne7 {[%clk 0:00:14]} 27. Rc7 {[%clk 0:01:18]}  a5 {[%clk 0:00:11]} 28. Nd8+ {[%clk 0:01:17]} 1-0


[Site "https://www.chess.com"]

[Event "Titled Tuesday Blitz April 4 Early 2023"]
[White "Antal, Gergely"]
[Black "Hovhannisyan, Robert"]
[WhiteFideId "717312"]
[BlackFideId "13302507"]
[WhiteElo "2471"]
[BlackElo "2570"]
[Result "1-0"]
[Round "02"]
[TimeControl "180+2"]
[Date "2023.04.04"]
[WhiteClock "0:00:32"]
[BlackClock "0:00:49"]

1. e4 {[%clk 0:03:00]}  Nc6 {[%clk 0:02:58]} 2. Nf3 {[%clk 0:03:00]}  e5 {[%clk 0:02:54]} 3. Nc3 {[%clk 0:02:58]}  Nf6 {[%clk 0:02:54]} 4. d4 {[%clk 0:02:58]}  exd4 {[%clk 0:02:54]} 5. Nxd4 {[%clk 0:02:59]}  Bc5 {[%clk 0:02:54]} 6. Nxc6 {[%clk 0:02:58]}  dxc6 {[%clk 0:02:53]} 7. Qxd8+ {[%clk 0:02:57]}  Kxd8 {[%clk 0:02:54]} 8. Bc4 {[%clk 0:02:47]}  Ng4 {[%clk 0:02:43]} 9. Bxf7 {[%clk 0:02:29]}  Bxf2+ {[%clk 0:02:28]} 10. Ke2 {[%clk 0:02:29]}  Bh4 {[%clk 0:02:27]} 11. h3 {[%clk 0:01:52]}  Ne5 {[%clk 0:02:27]} 12. Bb3 {[%clk 0:01:51]}  Ke7 {[%clk 0:02:22]} 13. Be3 {[%clk 0:01:50]}  b6 {[%clk 0:02:15]} 14. Rad1 {[%clk 0:01:32]}  Rd8 {[%clk 0:02:08]} 15. Rxd8 {[%clk 0:01:32]}  Ba6+ {[%clk 0:02:08]} 16. Rd3 {[%clk 0:01:29]}  Bf6 {[%clk 0:01:50]} 17. Rd1 {[%clk 0:01:28]}  h5 {[%clk 0:01:44]} 18. Kf2 {[%clk 0:01:26]}  Nxd3+ {[%clk 0:01:37]} 19. cxd3 {[%clk 0:01:27]}  Be5 {[%clk 0:01:35]} 20. d4 {[%clk 0:01:22]}  Rf8+ {[%clk 0:01:35]} 21. Kg1 {[%clk 0:01:22]}  Bg3 {[%clk 0:01:35]} 22. Bc2 {[%clk 0:01:12]}  h4 {[%clk 0:01:32]} 23. Bd3 {[%clk 0:01:12]}  Bc8 {[%clk 0:01:07]} 24. Rf1 {[%clk 0:01:12]}  Rxf1+ {[%clk 0:01:05]} 25. Kxf1 {[%clk 0:01:11]}  Be6 {[%clk 0:01:06]} 26. a3 {[%clk 0:00:44]}  a5 {[%clk 0:01:04]} 27. Ne2 {[%clk 0:00:43]}  Bh2 {[%clk 0:00:58]} 28. Bg5+ {[%clk 0:00:42]}  Ke8 {[%clk 0:00:54]} 29. Bxh4 {[%clk 0:00:43]}  c5 {[%clk 0:00:55]} 30. dxc5 {[%clk 0:00:34]}  bxc5 {[%clk 0:00:55]} 31. Bg3 {[%clk 0:00:33]}  Bxg3 {[%clk 0:00:55]} 32. Nxg3 {[%clk 0:00:34]}  Kd7 {[%clk 0:00:56]} 33. Ke2 {[%clk 0:00:34]}  Kd6 {[%clk 0:00:56]} 34. Ke3 {[%clk 0:00:34]}  Ke5 {[%clk 0:00:54]} 35. Ne2 {[%clk 0:00:34]}  c4 {[%clk 0:00:54]} 36. Bc2 {[%clk 0:00:34]}  c5 {[%clk 0:00:55]} 37. Ng1 {[%clk 0:00:34]}  Kd6 {[%clk 0:00:52]} 38. Nf3 {[%clk 0:00:34]}  Kc6 {[%clk 0:00:52]} 39. Kd2 {[%clk 0:00:35]}  Bg8 {[%clk 0:00:50]} 40. Kc3 {[%clk 0:00:35]}  Kb5 {[%clk 0:00:50]} 41. Ne5 {[%clk 0:00:32]}  g5 {[%clk 0:00:49]} 42. Nxc4 {[%clk 0:00:32]} 1-0


[Site "https://www.chess.com"]

[Event "Titled Tuesday Blitz April 4 Early 2023"]
[White "Seemann, Jakub"]
[Black "Steinberg, Nitzan"]
[WhiteFideId "21874697"]
[BlackFideId "2801795"]
[WhiteElo "2364"]
[BlackElo "2486"]
[Result "1-0"]
[Round "02"]
[TimeControl "180+2"]
[Date "2023.04.04"]
[WhiteClock "0:00:56"]
[BlackClock "0:00:15"]

1. e4 {[%clk 0:03:00]}  c5 {[%clk 0:01:27]} 2. Nf3 {[%clk 0:02:59]}  e6 {[%clk 0:01:27]} 3. d4 {[%clk 0:02:59]}  cxd4 {[%clk 0:01:27]} 4. Nxd4 {[%clk 0:03:00]}  Nc6 {[%clk 0:01:27]} 5. Nc3 {[%clk 0:03:00]}  Qc7 {[%clk 0:01:27]} 6. a3 {[%clk 0:03:01]}  a6 {[%clk 0:01:28]} 7. Be3 {[%clk 0:03:01]}  Nf6 {[%clk 0:01:29]} 8. f4 {[%clk 0:02:58]}  h5 {[%clk 0:01:28]} 9. Nxc6 {[%clk 0:02:52]}  bxc6 {[%clk 0:01:26]} 10. e5 {[%clk 0:02:51]}  Ng4 {[%clk 0:01:25]} 11. Bg1 {[%clk 0:02:52]}  d5 {[%clk 0:01:25]} 12. exd6 {[%clk 0:02:24]}  Bxd6 {[%clk 0:01:24]} 13. g3 {[%clk 0:02:25]}  c5 {[%clk 0:01:18]} 14. Bg2 {[%clk 0:02:25]}  Bb7 {[%clk 0:01:18]} 15. Bxb7 {[%clk 0:02:15]}  Qxb7 {[%clk 0:01:18]} 16. Qxd6 {[%clk 0:02:14]}  Qxh1 {[%clk 0:01:12]} 17. O-O-O {[%clk 0:02:14]}  Qb7 {[%clk 0:01:02]} 18. Bxc5 {[%clk 0:02:03]}  Nf6 {[%clk 0:01:00]} 19. f5 {[%clk 0:01:42]}  Qd7 {[%clk 0:00:56]} 20. Qe5 {[%clk 0:01:33]}  Qc8 {[%clk 0:00:46]} 21. Qd4 {[%clk 0:01:14]}  Rb8 {[%clk 0:00:38]} 22. Qa4+ {[%clk 0:01:13]}  Nd7 {[%clk 0:00:37]} 23. Ne4 {[%clk 0:01:12]}  Kd8 {[%clk 0:00:29]} 24. fxe6 {[%clk 0:01:09]}  fxe6 {[%clk 0:00:28]} 25. Nd6 {[%clk 0:01:04]}  Qxc5 {[%clk 0:00:23]} 26. Nf7+ {[%clk 0:01:04]}  Ke7 {[%clk 0:00:22]} 27. Qxd7+ {[%clk 0:01:03]}  Kf6 {[%clk 0:00:23]} 28. Rf1+ {[%clk 0:00:58]}  Kg6 {[%clk 0:00:19]} 29. Qd3+ {[%clk 0:00:57]}  Qf5 {[%clk 0:00:16]} 30. Nxh8+ {[%clk 0:00:57]}  Rxh8 {[%clk 0:00:16]} 31. Rxf5 {[%clk 0:00:57]}  exf5 {[%clk 0:00:17]} 32. h4 {[%clk 0:00:57]}  Rf8 {[%clk 0:00:17]} 33. Qd6+ {[%clk 0:00:56]}  Rf6 {[%clk 0:00:17]} 34. Qf4 {[%clk 0:00:57]}  Re6 {[%clk 0:00:17]} 35. c4 {[%clk 0:00:57]}  Re4 {[%clk 0:00:15]} 36. Qg5+ {[%clk 0:00:56]} 1-0


[Site "https://www.chess.com"]

[Event "Titled Tuesday Blitz April 4 Early 2023"]
[White "Gurel, Ediz"]
[Black "Belozerov, Andrei"]
[WhiteFideId "44507356"]
[BlackFideId "4120213"]
[WhiteElo "2352"]
[BlackElo "2373"]
[Result "1-0"]
[Round "02"]
[TimeControl "180+2"]
[Date "2023.04.04"]
[WhiteClock "0:00:14"]
[BlackClock "0:00:14"]

1. e4 {[%clk 0:03:00]}  c5 {[%clk 0:02:58]} 2. Nf3 {[%clk 0:02:59]}  Nc6 {[%clk 0:02:58]} 3. d4 {[%clk 0:02:57]}  cxd4 {[%clk 0:02:58]} 4. Nxd4 {[%clk 0:02:58]}  g6 {[%clk 0:02:58]} 5. c4 {[%clk 0:02:58]}  Nf6 {[%clk 0:02:58]} 6. Nc3 {[%clk 0:02:57]}  d6 {[%clk 0:02:58]} 7. Be2 {[%clk 0:02:55]}  Bg7 {[%clk 0:02:57]} 8. Be3 {[%clk 0:02:55]}  O-O {[%clk 0:02:57]} 9. O-O {[%clk 0:02:55]}  Nxd4 {[%clk 0:02:56]} 10. Bxd4 {[%clk 0:02:56]}  Bd7 {[%clk 0:02:56]} 11. Qd2 {[%clk 0:02:55]}  Bc6 {[%clk 0:02:55]} 12. f3 {[%clk 0:02:55]}  a5 {[%clk 0:02:55]} 13. Rab1 {[%clk 0:02:51]}  Nd7 {[%clk 0:02:54]} 14. Bf2 {[%clk 0:02:49]}  Nc5 {[%clk 0:02:53]} 15. b3 {[%clk 0:02:44]}  Qc7 {[%clk 0:02:43]} 16. Rfc1 {[%clk 0:02:40]}  Rfc8 {[%clk 0:02:41]} 17. Nd5 {[%clk 0:02:23]}  Qd8 {[%clk 0:02:32]} 18. Rc2 {[%clk 0:02:18]}  e6 {[%clk 0:02:28]} 19. Nc3 {[%clk 0:02:14]}  Be5 {[%clk 0:02:27]} 20. Rd1 {[%clk 0:02:00]}  Qf6 {[%clk 0:02:25]} 21. g3 {[%clk 0:01:41]}  Rd8 {[%clk 0:02:14]} 22. Be3 {[%clk 0:01:38]}  Rd7 {[%clk 0:02:07]} 23. Nd5 {[%clk 0:01:30]}  exd5 {[%clk 0:01:53]} 24. cxd5 {[%clk 0:01:31]}  Rdd8 {[%clk 0:01:45]} 25. dxc6 {[%clk 0:01:30]}  bxc6 {[%clk 0:01:44]} 26. f4 {[%clk 0:01:22]}  Nxe4 {[%clk 0:01:29]} 27. fxe5 {[%clk 0:01:21]}  dxe5 {[%clk 0:01:22]} 28. Qe1 {[%clk 0:01:19]}  a4 {[%clk 0:01:19]} 29. Bd3 {[%clk 0:01:11]}  Ng5 {[%clk 0:01:13]} 30. Bxg5 {[%clk 0:01:07]}  Qxg5 {[%clk 0:01:14]} 31. b4 {[%clk 0:00:52]}  Rd4 {[%clk 0:01:03]} 32. Bf1 {[%clk 0:00:52]}  Rad8 {[%clk 0:01:00]} 33. Rxd4 {[%clk 0:00:51]}  exd4 {[%clk 0:01:00]} 34. Bd3 {[%clk 0:00:50]}  Qd5 {[%clk 0:00:49]} 35. Qe4 {[%clk 0:00:45]}  Qxe4 {[%clk 0:00:44]} 36. Bxe4 {[%clk 0:00:45]}  d3 {[%clk 0:00:45]} 37. Rd2 {[%clk 0:00:38]}  Rd4 {[%clk 0:00:46]} 38. Bxc6 {[%clk 0:00:38]}  Rxb4 {[%clk 0:00:46]} 39. Kf2 {[%clk 0:00:35]}  Kg7 {[%clk 0:00:38]} 40. Ke3 {[%clk 0:00:35]}  h5 {[%clk 0:00:34]} 41. Kxd3 {[%clk 0:00:33]}  h4 {[%clk 0:00:35]} 42. Kc3 {[%clk 0:00:33]}  Rg4 {[%clk 0:00:34]} 43. Rd3 {[%clk 0:00:32]}  hxg3 {[%clk 0:00:30]} 44. hxg3 {[%clk 0:00:32]}  f5 {[%clk 0:00:28]} 45. Kb2 {[%clk 0:00:30]}  Kf6 {[%clk 0:00:24]} 46. Ka3 {[%clk 0:00:30]}  g5 {[%clk 0:00:21]} 47. Bxa4 {[%clk 0:00:26]}  Ke5 {[%clk 0:00:20]} 48. Bd7 {[%clk 0:00:21]}  Rc4 {[%clk 0:00:18]} 49. Kb3 {[%clk 0:00:21]}  Rc7 {[%clk 0:00:18]} 50. a4 {[%clk 0:00:19]}  Ke4 {[%clk 0:00:18]} 51. Bb5 {[%clk 0:00:15]}  f4 {[%clk 0:00:16]} 52. gxf4 {[%clk 0:00:16]}  gxf4 {[%clk 0:00:17]} 53. Rc3 {[%clk 0:00:16]}  Rb7 {[%clk 0:00:16]} 54. Kc4 {[%clk 0:00:15]}  Rc7+ {[%clk 0:00:15]} 55. Kb4 {[%clk 0:00:16]}  Rb7 {[%clk 0:00:14]} 56. Ka5 {[%clk 0:00:16]}  Rb8 {[%clk 0:00:14]} 57. Rb3 {[%clk 0:00:12]}  Kd4 {[%clk 0:00:13]} 58. Ka6 {[%clk 0:00:10]}  f3 {[%clk 0:00:13]} 59. Rxf3 {[%clk 0:00:09]}  Ra8+ {[%clk 0:00:13]} 60. Kb6 {[%clk 0:00:10]}  Rb8+ {[%clk 0:00:12]} 61. Kc7 {[%clk 0:00:10]}  Ra8 {[%clk 0:00:12]} 62. Rf4+ {[%clk 0:00:10]}  Kc5 {[%clk 0:00:12]} 63. Rc4+ {[%clk 0:00:10]}  Kd5 {[%clk 0:00:12]} 64. Bc6+ {[%clk 0:00:11]}  Kxc4 {[%clk 0:00:12]} 65. Bxa8 {[%clk 0:00:12]}  Kb4 {[%clk 0:00:13]} 66. Bc6 {[%clk 0:00:13]}  Ka5 {[%clk 0:00:14]} 67. Bb5 {[%clk 0:00:13]}  Kb4 {[%clk 0:00:14]} 68. Kb6 {[%clk 0:00:14]} 1-0


[Site "https://www.chess.com"]

[Event "Titled Tuesday Blitz April 4 Early 2023"]
[White "Jakubowski, Krzysztof"]
[Black "Drygalov, Andrey"]
[WhiteFideId "1112848"]
[BlackFideId "24171735"]
[WhiteElo "2359"]
[BlackElo "2466"]
[Result "1/2-1/2"]
[Round "02"]
[TimeControl "180+2"]
[Date "2023.04.04"]
[WhiteClock "0:00:02"]
[BlackClock "0:00:02"]

1. e4 {[%clk 0:03:00]}  c5 {[%clk 0:02:59]} 2. Nf3 {[%clk 0:03:00]}  d6 {[%clk 0:02:59]} 3. d4 {[%clk 0:03:00]}  cxd4 {[%clk 0:03:00]} 4. Nxd4 {[%clk 0:03:00]}  Nf6 {[%clk 0:03:01]} 5. Nc3 {[%clk 0:03:00]}  a6 {[%clk 0:03:01]} 6. Be3 {[%clk 0:02:59]}  e5 {[%clk 0:03:01]} 7. Nb3 {[%clk 0:02:59]}  Be7 {[%clk 0:03:01]} 8. h3 {[%clk 0:02:58]}  Be6 {[%clk 0:02:56]} 9. Qf3 {[%clk 0:02:57]}  Nbd7 {[%clk 0:02:55]} 10. O-O-O {[%clk 0:02:56]}  b5 {[%clk 0:02:52]} 11. g4 {[%clk 0:02:54]}  h6 {[%clk 0:02:25]} 12. Kb1 {[%clk 0:02:41]}  Nb6 {[%clk 0:02:20]} 13. Nc5 {[%clk 0:02:20]}  Bc4 {[%clk 0:01:56]} 14. Nd3 {[%clk 0:01:33]}  Rc8 {[%clk 0:01:12]} 15. h4 {[%clk 0:01:10]}  Nfd7 {[%clk 0:01:01]} 16. g5 {[%clk 0:01:02]}  hxg5 {[%clk 0:00:29]} 17. hxg5 {[%clk 0:00:59]}  Rxh1 {[%clk 0:00:30]} 18. Qxh1 {[%clk 0:00:58]}  Bxg5 {[%clk 0:00:29]} 19. Qh8+ {[%clk 0:00:55]}  Nf8 {[%clk 0:00:29]} 20. Bh3 {[%clk 0:00:50]}  Bxe3 {[%clk 0:00:24]} 21. Bxc8 {[%clk 0:00:47]}  Bd4 {[%clk 0:00:24]} 22. Bb7 {[%clk 0:00:25]}  Bxc3 {[%clk 0:00:20]} 23. Bc6+ {[%clk 0:00:24]}  Ke7 {[%clk 0:00:20]} 24. bxc3 {[%clk 0:00:23]}  Qc7 {[%clk 0:00:19]} 25. Nb4 {[%clk 0:00:21]}  Na4 {[%clk 0:00:17]} 26. Qh3 {[%clk 0:00:18]}  a5 {[%clk 0:00:14]} 27. Nd5+ {[%clk 0:00:17]}  Bxd5 {[%clk 0:00:14]} 28. exd5 {[%clk 0:00:18]}  Qb6 {[%clk 0:00:11]} 29. Qh4+ {[%clk 0:00:14]}  f6 {[%clk 0:00:11]} 30. Rg1 {[%clk 0:00:14]}  g6 {[%clk 0:00:07]} 31. Qh8 {[%clk 0:00:11]}  Kf7 {[%clk 0:00:06]} 32. Rh1 {[%clk 0:00:08]}  Nxc3+ {[%clk 0:00:04]} 33. Ka1 {[%clk 0:00:09]}  f5 {[%clk 0:00:03]} 34. Rh7+ {[%clk 0:00:05]}  Nxh7 {[%clk 0:00:02]} 35. Qxh7+ {[%clk 0:00:05]}  Kf6 {[%clk 0:00:03]} 36. Qh4+ {[%clk 0:00:05]}  Kf7 {[%clk 0:00:02]} 37. Qh7+ {[%clk 0:00:04]}  Kf6 {[%clk 0:00:02]} 38. Qh4+ {[%clk 0:00:03]}  Kf7 {[%clk 0:00:02]} 39. Qh7+ {[%clk 0:00:02]} 1/2-1/2


[Site "https://www.chess.com"]